Cogmind - Beta 10.2 @@@ ROGUE MODE // 2021.06.30 @ 14:01:00 Player: HabNab Result: Destroyed by G-34 Mercenary with Small Laser Performance ------------- Evolutions (1) 500 Regions Visited (2) 400 Robots Destroyed (14) 70 Value Destroyed (458) 458 Prototype IDs (2) 40 Alien Tech Used (0) 0 Bonus (0) 0 TOTAL SCORE: 1468 Bonus ------- None Cogmind --------- Core Integrity 0/400 Matter 300/300 Energy 100/100 System Corruption 0% Temperature Cool (6) Movement Core (300) Ox5 Location -9/Materials Parts ------- > --- POWER (1) -------- (None) > --- PROPULSION (3) --- (None) > --- UTILITY (2) ------ Large Storage Unit > --- WEAPON (3) ------- (None) > --- INVENTORY (10) --- Ion Engine Visual Processing Unit Weapon Shielding Peak State ------------ > --- POWER ------------ Ion Engine > --- PROPULSION ------- Light Treads Light Treads Light Treads > --- UTILITY ---------- Large Storage Unit High-capacity Battery > --- WEAPON ----------- Beam Cannon Beam Cannon Beam Cannon > --- INVENTORY -------- Ion Engine Ion Engine Light Treads Visual Processing Unit Weapon Shielding Medium Laser Beam Cannon Beam Cannon Light Assault Rifle [Rating: 10] Favorites ----------- Power Ion Engine Engine Ion Engine Propulsion Light Treads Treads Light Treads Utility Small Storage Unit Device Heat Sink Storage Small Storage Unit Weapon Medium Laser Energy Gun Medium Laser Energy Cannon Beam Cannon Ballistic Gun Light Assault Rifle Build | -11 -10 -9 ------- Run | Scr Mat Mat Slots Evolved 2 | . . 2 Power . | . . . Propulsion 1 | . . 1 Utility . | . . . Weapon 1 | . . 1 Parts Attached 19 | 6 4 9 Power 2 | 1 . 1 Engine 2 | 1 . 1 Core . | . . . Reactor . | . . . Propulsion 4 | 2 . 2 Treads 4 | 2 . 2 Leg . | . . . Wheel . | . . . Hover . | . . . Flight . | . . . Utility 4 | 1 2 1 Device 1 | . . 1 Storage 3 | 1 2 . Processor . | . . . Hackware . | . . . Protection . | . . . Artifact . | . . . Weapon 9 | 2 2 5 Energy Gun 3 | 2 . 1 Energy Cannon 5 | . 2 3 Ballistic Gun 1 | . . 1 Ballistic Cannon . | . . . Launcher . | . . . Special Weapon . | . . . Impact Weapon . | . . . Slashing Weapon . | . . . Piercing Weapon . | . . . Special Melee Weapon . | . . . Unidentified Prototypes . | . . . Parts Lost 10 | . . 10 Power 2 | . . 2 Propulsion 2 | . . 2 Utility 1 | . . 1 Weapon 5 | . . 5 Highest Loss Streak 4 | . . 4 Average Slot Usage (%) 88 | . 99 75 Engine 11 | . 14 9 Treads 25 | . 28 22 Device 1 | . . 3 Storage 23 | . 27 18 Energy Gun 3 | . 5 1 Energy Cannon 19 | . 22 16 Ballistic Gun 1 | . . 3 Naked Turns . | . . . Heaviest Build 34 | 12 31 34 Greatest Support 60 | 40 40 60 Greatest Overweight (x) 1 | . . 1 Average Overweight (x) . | . . . Largest Inventory Capacity 12 | 6 12 10 Average Capacity 6 | 5 11 10 Most Carried 10 | 2 10 9 Average Carried 2 | 1 6 5 Final Capacity 10 | 6 10 10 Final Carried 10 | 2 10 3 Class Distribution -------------------- 98% | Mutant Dominant Class ---------------- Mutant | -10/Materials Mutant | -9/Materials Resources | -11 -10 -9 ----------- Run | Scr Mat Mat Matter Collected 390 | 230 60 100 Remotely . | . . . Salvage Created 605 | . 216 389 Parts 26 | . 10 16 Haulers Intercepted . | . . . Recyclers Shooed 2 | . . 2 Parts Field Recycled . | . . . Retrieved Matter . | . . . Parts Self-Destructed . | . . . Prevented . | . . . Kills | -11 -10 -9 ------- Run | Scr Mat Mat Combat Hostiles Destroyed 11 | . 4 7 Guns 1 | . . 1 Cannons 10 | . 4 6 Classes Destroyed 5 | . 2 3 Recycler 1 | . . 1 Watcher 2 | . 1 1 Grunt 9 | . 4 5 Brawler 1 | . . 1 Sentry 1 | . . 1 Best Kill Streak 5 | . 2 5 Combat Bots Only 4 | . 2 4 Max Kills in Single Turn 1 | . 1 1 Gunslinging . | . . . Exploded . | . . . Melee . | . . . Uniques/NPCs Destroyed . | . . . Combat | -11 -10 -9 -------- Run | Scr Mat Mat Damage Taken 1258 | . 99 1159 Core 437 | . 27 410 Absorbed by Shields . | . . . Core Remaining (%) 94 | 100 89 . Volleys Fired 54 | . 12 42 Largest 3 | . 2 3 Hottest 180 | . 120 180 Shots Fired 86 | . 24 62 Gun 20 | . . 20 Cannon 66 | . 24 42 Launcher . | . . . Special . | . . . Kinetic 16 | . . 16 Thermal 70 | . 24 46 Explosive . | . . . Electromagnetic . | . . . Robot Hit Streak 11 | . 11 9 Robot Miss Streak 6 | . 5 6 Penetration Max . | . . . Secondary Targets . | . . . Shots Hit Robots 52 | . 12 40 Core Hits 21 | . 6 15 Critical Hits 1 | . . 1 Critical Kills 1 | . . 1 Critical Parts Destroyed . | . . . Melee Attacks . | . . . Impact . | . . . Slashing . | . . . Piercing . | . . . Sneak Attacks . | . . . Combat Hostiles . | . . . Follow-up Attacks . | . . . Damage Inflicted 787 | . 207 580 Guns 123 | . . 123 Cannons 664 | . 207 457 Explosions . | . . . Melee . | . . . Ramming . | . . . Kinetic 97 | . . 97 Thermal 690 | . 207 483 Explosive . | . . . Electromagnetic . | . . . Impact . | . . . Slashing . | . . . Piercing . | . . . Highest Corruption . | . . . Average Corruption . | . . . Corruption Purged . | . . . Overload Shots . | . . . Overflow Damage . | . . . Projectiles . | . . . Explosions . | . . . Melee . | . . . Knockbacks . | . . . Impact . | . . . Kinetic . | . . . Secondary . | . . . Self-Inflicted Damage . | . . . Shots . | . . . Rammed . | . . . Targets Rammed . | . . . Kicked . | . . . Crushed . | . . . Highest Temperature 606 | . 267 606 Average Temperature 256 | . 104 345 Received Heat Transfer 519 | . 57 462 Effects 34 | . 1 33 Shutdowns 5 | . . 5 Energy Bleed 3 | . 1 2 Interference 4 | . . 4 Short Circuit 4 | . . 4 Damage (minor) 3 | . . 3 Damage (major) 12 | . . 12 Damage (core) 3 | . . 3 Siege Activations . | . . . Robots Corrupted . | . . . Combat Hostiles . | . . . Parts Fried . | . . . Impact Corruptions . | . . . Robots Melted . | . . . Combat Hostiles . | . . . Parts Melted 5 | . . 5 Heat Transferred 1480 | . 444 1036 Parts Sabotaged . | . . . Parts Stolen . | . . . Parts Stripped . | . . . Power Chain Reactions . | . . . Missiles Intercepted . | . . . Alert | -11 -10 -9 ------- Run | Scr Mat Mat Peak Influence 280 | . 162 280 Initial 68 | . . 68 Average 11 | . 95 171 Maximum Alert Level 1 | . . 1 Low Security (%) 98 | 100 100 64 Level 1 1 | . . 35 Level 2 . | . . . Level 3 . | . . . Level 4 . | . . . Level 5 . | . . . High Security . | . . . Max Security . | . . . Squads Dispatched 2 | . 1 1 Investigation . | . . . Extermination . | . . . Reinforcement 2 | . 1 1 Assault . | . . . Garrison . | . . . Intercept . | . . . Construction Impeded . | . . . Haulers Reinforced . | . . . Stealth | -11 -10 -9 --------- Run | Scr Mat Mat Distress Signals 1 | . . 1 Communications Jammed . | . . . Distress Signals . | . . . Times Spotted 27 | . 9 18 Peak Tracking Total 8 | . 3 8 Tactical Retreats 1 | . . 1 Traps | -11 -10 -9 ------- Run | Scr Mat Mat Traps Triggered . | . . . Indirectly . | . . . Trap Hack Attempts . | . . . Triggered . | . . . Disarmed . | . . . Reprogrammed . | . . . Reused . | . . . Traps Extracted . | . . . Installed . | . . . Triggered . | . . . Machines | -11 -10 -9 ---------- Run | Scr Mat Mat Machines Disabled 2 | . 1 1 Max in Single Turn 1 | . 1 1 Machines Sabotaged . | . . . Garrisons Compromised . | . . . Overloaded Fab Kills . | . . . Fab Network Shutdowns . | . . . Hacking | -11 -10 -9 --------- Run | Scr Mat Mat Machines Accessed 3 | . 2 1 Terminals 3 | . 2 1 Fabricators . | . . . Repair Stations . | . . . Recycling Units . | . . . Scanalyzers . | . . . Garrison Access . | . . . Total Hacks 8 | . 5 3 Successful 5 | . 3 2 Failed 3 | . 2 1 Catastrophic . | . . . Database Lockouts . | . . . Manual . | . . . Terminals 8 | . 5 3 Fabricators . | . . . Repair Stations . | . . . Recycling Units . | . . . Scanalyzers . | . . . Garrison Access . | . . . Terminal Hacks 5 | . 3 2 Robot Analysis 1 | . 1 . Prototype ID Bank 1 | . . 1 Unreport Threat 1 | . . 1 Hauler Manifests 1 | . 1 . Zone Layout 1 | . 1 . Fabricator Hacks . | . . . Repair Station Hacks . | . . . Recycling Unit Hacks . | . . . Scanalyzer . | . . . Garrison Access Hacks . | . . . Unauthorized Hacks . | . . . Terminals . | . . . Fabricators . | . . . Repair Stations . | . . . Recycling Units . | . . . Scanalyzers . | . . . Garrison Access . | . . . Data Cores Recovered . | . . . Used . | . . . Hacking Detections 3 | . 2 1 Full Trace Events . | . . . Feedback Events . | . . . Feedback Blocked . | . . . Robot Schematics Acquired . | . . . Robots Built . | . . . Matter . | . . . Time . | . . . Total Robot Build Rating . | . . . Part Schematics Acquired . | . . . Parts Built . | . . . Matter . | . . . Time . | . . . Total Part Build Rating . | . . . Parts Repaired . | . . . Time . | . . . Parts Recycled . | . . . Recycled Matter . | . . . Retrieved Matter . | . . . Retrieved Components . | . . . Parts Scanalyzed . | . . . Part Schematics Acquired . | . . . Parts Damaged . | . . . Bothacking | -11 -10 -9 ------------ Run | Scr Mat Mat Used RIF Installer . | . . . Robots Hacked . | . . . Non-combat . | . . . Combat . | . . . Robot Hacks Applied . | . . . Relay Couplers Released . | . . . Robots Rewired . | . . . Allies Hacked . | . . . Hacks Repelled . | . . . Allies | -11 -10 -9 -------- Run | Scr Mat Mat Total Allies . | . . . Largest Group . | . . . Highest-Rated Group . | . . . Highest-Rated Ally . | . . . Total Orders . | . . . Ally Attacks . | . . . Total Damage . | . . . Kills . | . . . Allies Corrupted . | . . . Allies Melted . | . . . Intel | -11 -10 -9 ------- Run | Scr Mat Mat Robot Analysis Total 1 | . 1 . Derelict Logs Recovered . | . . . Drone Launches . | . . . Drone Recoveries . | . . . Exploration | -11 -10 -9 ------------- Run | Scr Mat Mat Turns Passed 7322 | 6667 361 294 Spaces Moved 2359 | 2096 177 86 Core 3 | 3 . . Treads 2356 | 2093 177 86 Legs . | . . . Wheels . | . . . Hover . | . . . Flight . | . . . Fastest Speed 50 | 50 160 160 Average Speed 160 | 159 160 167 Slowest Speed 180 | 160 160 180 Overloaded Moves . | . . . Propulsion Burnouts . | . . . Robots Hopped . | . . . Cave-ins Triggered . | . . . Exploration Rate (%) 45 | 96 28 12 Regions Visited 2 Branch Regions . Pre-discovered Areas . | . . . Known Exits Taken . | . . . Unknown Exits Taken 2 | 1 1 . Scrap Searched . | . . . Spaces Dug . | . . . Terrain Destroyed . | . . . Melee . | . . . Projectile . | . . . AOE . | . . . Terrain Rammed . | . . . Walls Destroyed . | . . . Machines Disabled . | . . . Actions | -11 -10 -9 --------- Run | Scr Mat Mat Total 5823 | 5410 230 183 Wait 3374 | 3307 27 40 Move 2357 | 2095 176 86 Hop . | . . . Pick Up 12 | 2 9 1 Fast Attach 9 | 6 2 1 Attach 8 | . 1 7 Detach . | . . . Swap 2 | . 1 1 Drop 7 | . 2 5 Fire 54 | . 12 42 Melee . | . . . Ram . | . . . Kick . | . . . Crush . | . . . Escape Stasis . | . . . Rewire . | . . . Trap . | . . . Miscellaneous . | . . . Route ------- -11/Scrapyard -10/Materials -9/Materials History --------- Turn | Location | Event 41 | -11/Scrapyard | Discovered new exit (range 16) 6668 | -11/Scrapyard | Entered Materials 6669 | -10/Materials | Build established: Mutant 7001 | -10/Materials | Discovered new exit (range 9) 7029 | -10/Materials | Entered another Materials area 7029 | -9/Materials | Evolved 2 slots: Propulsion x1, Weapon x1 7209 | -9/Materials | Core integrity fell below 50% 7230 | -9/Materials | Lost 4 parts (1p1n2w) 7319 | -9/Materials | Core integrity fell below 20% 7323 | -9/Materials | Destroyed by G-34 Mercenary with Small Laser Last Messages --------------- 07225_ Dropped Hcp. Battery. 07225_ Acquired Heat Sink. 07227_ Acquired 26 matter. 07229_ R-06 Scavenger collects Hvy. Assault Rifle. 07234_ Connecting with Terminal... 07234_ Current location identified: Materials >>Prototypes Downloading prototype IDs... Imp. VTOL Module Adv. Beam Rifle >>Alert(Purge) Purged threat record, alert level lowered. 07234_ Acquired 2 matter. 07237_ Acquired 1 matter. 07239_ Dropped Broken Lgt. Treads. 07289_ Lgt. Assault Rifle destroyed. 07293_ Ion Engine destroyed. 07307_ W-16 Scout sends out distress signal. 07317_ Lgt. Treads destroyed. 07319_ Heat Sink destroyed. Map ----- +----------------------------------------------------+ | ????????????????????????????????????????? | | ????????????????????????????????????????? | | ????????????????????????????????????????? | | ????????????????????????????????????????? | | ????????????????????????????????????????? | | ????????????????????????????????????????? | | ????????????????????????????????????????? | | ????????????????????????????????????????? | | ????????????????????????????????????????? | | ????????????????????????????????????????? | | ????????????????????????????????????????? | | ????????????????????????????????????????? | | ??????????????????????????? ???????????? | | ??????????????????????????? ???????????? | | ??????????????????????????? ???????????? | | ??????????????????????????# #??????????? | | ??????????????????????????# #??????????? | | ??????????????????????????# +??????????? | | ?????????????????????????? #??????????? | | ?????????????????????????? #??????????? | | ?????????????????????#????# #??????????? | | ?????????????????????# ???# #??????????? | | ?????????????#########+#### #??????????? | | ?????????????# g # #??????????? | | ?????????????# t g # #??????????? | | ?????????????# @# #??????????? | | ?????????????# gg# #######????? | | ?????????????# g + + # | | ?????????????############## # """ """ ? | | ?????????????# ######## # """ """??? | | ?????????????# # # """ ""???? | | ?????????????# T # # ???? | | ?????????????# # #########??? | | ?????????????# ######## %#??#### #### | | ?????????????## ##??????# #??# = # | | ??????????????# #???????# #??#"" % ! # | | ??????????????# #???????# #??#"T # | | ############### ######### ####"" # | | ^ # # | | ^ + " " # | | ^ %%% # """"" # | | ####+########## #######/##+# """"" # | | ??????????????# #??# %% # """"" # | | ??????????????# #??# % # """ # | | ??????????????# #??# # # | | ??????????????# #??# """" ######?## | | ??????????????# #??# """"" #???????? | | ??????????????# #??# """"" #???????? | | ??????????????# ??+ #???????? | | ??????????????# # """"" #???????? | +----------------------------------------------------+ Best States ------------- Heat Dissipation 38 Energy Generation 10 Energy Capacity 650 Matter Stores 300 Matter Capacity 300 Sight Range 16 Terrain Scan Density 10 Evasion (%) 40 Recoil Reduction 3 Item Schematics ----------------- None Robot Schematics ------------------ None Fabricated ------------ Nothing Alien Tech Used ----------------- None Achievements -------------- None Challenges ------------ None Game ------ Seed FieldTerrainFlail Manual? 0 Play Time 00:19:15 Cumulative 2.4 hours Start 2021.06.30 @ 13:36:46 End 2021.06.30 @ 14:01:00 Sessions 2 Manual Loads 0 Difficulty Rogue Special Mode None Game No. 2 Rogue 2 Adventurer 0 Explorer 0 Win Type - Total 0 Types 0/0/0/0/0/0/0/0/0 Lore% 7 Gallery% 6 Achievement% 10 Wizard Run 0 Options --------- ASCII 0 Keyboard 0 Movement Mouse Keybinds 0 Fullscreen 2 Font 18/SmallcapsGlow Map View 76x50 Tactical HUD 1 Map Filters NONE Filters NONE Steam 1 RUN: 49819791-af6e-4539-89f3-5311d4c8c004